{"text_format":"1","workbook":"xlsx","n_sheets":15,"sheets":["LSW Set-up","Planner Instructions","Planner Overview","LSW Sheet","Weekly Planner","Work(W1)","Work(W2)","To-do List (TD)","Personal (ME)","Professional (PF)","Family and Friends","Phone Calls (PC)","Errands (E)","@ Computer (C)","Home (H)"],"not_rendered":{"charts":0,"images":9,"macros":1,"external_links":0,"defined_names":17,"comments":1,"pivot_tables":0},"unopened":[],"bounds":{"document_bytes":16777216,"sheet_cells":100000,"rows_first":2000,"rows_last":500,"rows_between":2000,"halvings":0,"cell_chars":16384,"cell_head_chars":4096},"cells_cut":0,"cells_raw":0,"read":"whole","date_system":"1900"}

{"sheet":"LSW Set-up","index":0,"n_rows":61,"n_cols":29,"rows_kept":61,"cut":false,"hidden":false,"merged":[[0,0,0,10],[0,11,0,16],[3,0,3,7],[14,7,14,22],[15,5,15,20]]}
["WEEK of: ",null,null,null,null,null,null,"2018-04-08",null,null,null,{"$f":"'Weekly Planner'!L1:Q1","v":"2023-04-21"}]
[]
[null,null,null,null,null,null,null,null,null,null,null,null,null,null,null,null,null,null,null,null,null,null,null,null,null,null,null,null,"Do Not Remove"]
[{"$f":"EDATE($AC$6,0)","v":"2023-04-01"},null,null,null,null,null,null,null,null,null,null,null,null,null,null,null,null,null,null,null,null,null,null,null,null,null,null,null,{"$f":"YEAR(L1)","v":2023}]
["Wk","Sun","Mon","Tue","Wed","Thu","Fri","Sat",null,null,null,null,null,null,null,null,null,null,null,null,null,null,null,null,null,null,null,null,{"$f":"MONTH(L1)","v":4}]
[{"$f":"WEEKNUM(H6)","v":13},{"$f":"IF(WEEKDAY(A4)=1,A4,\"\")","v":""},{"$f":"IF(B6<>\"\",B6+1,IF(WEEKDAY(A4)=2,A4,\"\"))","v":""},{"$f":"IF(C6<>\"\",C6+1,IF(WEEKDAY($A$4)=3,$A$4,\"\"))","v":""},{"$f":"IF(D6<>\"\",D6+1,IF(WEEKDAY($A$4)=4,$A$4,\"\"))","v":""},{"$f":"IF(E6<>\"\",E6+1,IF(WEEKDAY($A$4)=5,$A$4,\"\"))","v":""},{"$f":"IF(F6<>\"\",F6+1,IF(WEEKDAY($A$4)=6,$A$4,\"\"))","v":""},{"$f":"IF(G6<>\"\",G6+1,IF(WEEKDAY($A$4)=7,$A$4,\"\"))","v":"2023-04-01"},null,null,null,null,null,null,null,null,null,null,null,null,null,null,null,null,null,null,null,null,{"$f":"DATE(AC4,AC5,1)","v":"2023-04-01"}]
[{"$f":"WEEKNUM(B7)","v":14},{"$f":"H6+1","v":"2023-04-02"},{"$f":"B7+1","v":"2023-04-03"},{"$f":"C7+1","v":"2023-04-04"},"2023-04-05","2023-04-06","2023-04-07","2023-04-08",null,null,null,null,null,null,null,null,null,null,null,null,null,null,null,null,null,null,null,null,{"$f":"WEEKNUM(L1)","v":16}]
[{"$f":"WEEKNUM(B8)","v":15},{"$f":"H7+1","v":"2023-04-09"},{"$f":"B8+1","v":"2023-04-10"},"2023-04-11","2023-04-12","2023-04-13","2023-04-14","2023-04-15"]
[{"$f":"WEEKNUM(B9)","v":16},"2023-04-16","2023-04-17","2023-04-18","2023-04-19","2023-04-20","2023-04-21","2023-04-22"]
[{"$f":"WEEKNUM(B10)","v":17},"2023-04-23","2023-04-24","2023-04-25","2023-04-26","2023-04-27","2023-04-28","2023-04-29"]
[{"$f":"WEEKNUM(B11)","v":18},"2023-04-30","2023-05-01","2023-05-02","2023-05-03","2023-05-04","2023-05-05","2023-05-06"]
[null,null,null,null,null,null,null,null,null,null,null,null,null,null," ",null," "]
[null,null,null,null,null,null," "]
[]
[null,"Title of PLA/LSW Sheet:",null,null,null,null,null,"Leader Standardized Work"]
[null,"Leader Name:",null,null,null,"<enter name here>"]
[]
[]
[]
[]
[]
[]
[]
[]
[]
[]
[]
[]
[]
[]
[]
[]
[]
[]
[]
[]
[]
[]
[]
[]
[]
[]
[]
[]
[]
[]
[]
[]
[]
[]
[]
[]
[]
[]
[]
[]
[]
[]
[]
[]
[null,null,null,null,null,null,null,"2020-01-18"]

{"sheet":"Planner Instructions","index":1,"n_rows":44,"n_cols":8,"rows_kept":44,"cut":false,"hidden":false,"merged":[]}
[]
[]
[]
[]
[]
[]
[]
[]
[]
[]
[]
[]
[]
[]
[]
[]
[]
[]
[]
[]
[]
[]
[]
[]
[]
[]
[]
[]
[]
[]
[]
[]
[]
[]
[]
[]
[]
[]
[]
[]
[]
[]
[]
[null,null,null,null,null,null,null,"2020-01-18"]

{"sheet":"Planner Overview","index":2,"n_rows":0,"n_cols":0,"rows_kept":0,"cut":false,"hidden":false,"merged":[]}

{"sheet":"LSW Sheet","index":3,"n_rows":54,"n_cols":95,"rows_kept":54,"cut":false,"hidden":false,"merged":[[6,0,6,1],[6,2,6,15],[6,16,6,38],[6,80,6,83],[7,0,7,1],[7,2,7,15],[7,16,7,38],[7,80,7,83],[0,80,3,83],[4,0,4,1],[4,2,4,15],[4,16,4,38],[4,39,10,41],[4,80,4,83],[5,0,5,1],[5,2,5,15],[5,16,5,38],[5,80,5,83],[0,0,3,1],[0,2,3,15],[0,16,3,38],[0,39,3,41],[0,42,0,60],[0,61,0,79],[10,0,10,1],[10,2,10,15],[10,80,10,83],[11,0,11,1],[11,2,11,15],[11,39,11,41],[11,80,11,83],[8,0,8,1],[8,2,8,15],[8,16,8,38],[8,80,8,83],[9,0,9,1],[9,2,9,15],[14,80,14,83],[15,0,15,1],[15,39,15,41],[12,0,12,1],[12,2,12,15],[12,16,12,38],[12,39,12,41],[12,80,12,83],[13,0,13,1],[13,2,13,15],[13,16,13,38],[13,39,13,41],[13,80,13,83],[16,0,16,1],[16,39,16,41],[17,0,17,1],[17,39,17,41],[18,0,18,1],[18,39,18,41],[14,0,14,1],[14,2,14,15],[14,39,14,41],[21,16,21,38],[21,80,21,83],[22,0,22,1],[22,16,22,38],[22,80,22,83],[19,0,19,1],[19,2,19,15],[19,16,19,38],[19,39,30,41],[19,80,19,83],[20,0,20,1],[20,2,20,15],[20,16,20,38],[20,80,20,83],[21,0,21,1],[25,80,25,83],[26,0,26,1],[26,16,26,38],[26,80,26,83],[23,0,23,1],[23,16,23,38],[23,80,23,83],[24,0,24,1],[24,16,24,38],[24,80,24,83],[27,0,27,1],[27,2,27,15],[27,16,27,38],[28,0,28,1],[28,2,28,15],[28,16,28,38],[25,0,25,1],[25,16,25,38],[29,0,29,1],[29,2,29,15],[29,16,29,38],[33,16,33,38],[33,80,33,83],[30,0,30,1],[30,2,30,15],[30,16,30,38],[31,0,31,1],[31,2,31,15],[31,16,31,38],[36,0,36,1],[36,2,36,15],[36,16,36,38],[36,80,36,83],[37,0,37,1],[37,2,37,15],[37,16,37,38],[37,80,37,83],[34,0,34,1],[34,2,34,15],[34,16,34,38],[34,80,34,83],[35,0,35,1],[35,2,35,15],[35,16,35,38],[35,80,35,83],[31,39,40,41],[31,80,31,83],[32,0,32,1],[32,2,32,15],[32,16,32,38],[32,80,32,83],[33,0,33,1],[33,2,33,15],[39,0,39,1],[39,2,39,15],[39,16,39,38],[39,80,39,83],[38,0,38,1],[38,2,38,15],[38,16,38,38],[38,80,38,83],[43,0,43,1],[43,2,43,15],[43,39,43,41],[43,80,43,83],[44,0,44,1],[44,2,44,15],[44,39,44,41],[44,80,44,83],[40,0,40,1],[40,2,40,15],[41,0,41,38],[41,39,41,41],[41,80,41,83],[42,0,42,1],[42,2,42,15],[42,39,42,41],[42,80,42,83],[47,0,47,1],[47,2,47,15],[47,39,47,41],[47,80,47,83],[48,0,48,1],[48,2,48,15],[48,39,48,41],[48,80,48,83],[45,0,45,1],[45,2,45,15],[45,39,45,41],[45,80,45,83],[46,0,46,1],[46,2,46,15],[46,39,46,41],[46,80,46,83],[51,0,51,1],[51,2,51,15],[51,16,51,38],[51,39,51,41],[51,80,51,83],[49,0,49,1],[49,2,49,15],[49,39,49,41],[49,80,49,83],[50,0,50,1],[50,2,50,15],[50,16,50,38],[50,39,50,41],[50,80,50,83]]}
["Item",null,"Standard Work Item",null,null,null,null,null,null,null,null,null,null,null,null,null,"Description",null,null,null,null,null,null,null,null,null,null,null,null,null,null,null,null,null,null,null,null,null,null,"Freq",null,null,{"$f":"EDATE(CM22,0)","v":"2023-04-21"},null,null,null,null,null,null,null,null,null,null,null,null,null,null,null,null,null,null,{"$f":"CM25","v":2023},null,null,null,null,null,null,null,null,null,null,null,null,null,null,null,null,null,null," "]
[null,null,null,null,null,null,null,null,null,null,null,null,null,null,null,null,null,null,null,null,null,null,null,null,null,null,null,null,null,null,null,null,null,null,null,null,null,null,null,null,null,null,{"$f":"IF(WEEKDAY($CM$28)=1,1,DAY(($CM$28-($CM$29-1))))","v":"1900-01-26"},{"$f":"IF(AQ2<7,AQ2+1,IF(WEEKDAY($CM$28)=2,1,DAY(($CM$28-($CM$29-2)))))","v":"1900-01-27"},{"$f":"IF(AR2<7,AR2+1,IF(WEEKDAY($CM$28)=3,1,DAY(($CM$28-($CM$29-3)))))","v":"1900-01-28"},{"$f":"IF(AS2<7,AS2+1,IF(WEEKDAY($CM$28)=4,1,DAY(($CM$28-($CM$29-4)))))","v":"1900-01-29"},{"$f":"IF(AT2<7,AT2+1,IF(WEEKDAY($CM$28)=5,1,DAY(($CM$28-($CM$29-5)))))","v":"1900-01-30"},{"$f":"IF(AU2<7,AU2+1,IF(WEEKDAY($CM$28)=6,1,DAY(($CM$28-($CM$29-6)))))","v":"1900-01-31"},{"$f":"IF(AV2<7,AV2+1,IF(WEEKDAY($CM$28)=7,1,DAY(($CM$28-($CM$29-7)))))","v":"1900-01-01"},{"$f":"AW2+1","v":"1900-01-02"},{"$f":"AX2+1","v":"1900-01-03"},"1900-01-04","1900-01-05","1900-01-06","1900-01-07","1900-01-08","1900-01-09","1900-01-10","1900-01-11","1900-01-12","1900-01-13","1900-01-14","1900-01-15","1900-01-16","1900-01-17","1900-01-18","1900-01-19","1900-01-20","1900-01-21","1900-01-22",{"$f":"IF(BR2<$CM$30,BR2+1,IF(WEEKDAY($CM$28)=1,1,DAY(($CM$28))))","v":"1900-01-23"},"1900-01-24","1900-01-25","1900-01-26","1900-01-27","1900-01-28","1900-01-29","1900-01-30","1900-01-01",{"$f":"IF(CA2<$CM$30,CA2+1,IF(WEEKDAY($CM$28)=1,,DAY(($CM$28))))","v":"1900-01-02"}]
[null,null,null,null,null,null,null,null,null,null,null,null,null,null,null,null,null,null,null,null,null,null,null,null,null,null,null,null,null,null,null,null,null,null,null,null,null,null,null,null,null,null," ",null,null,null,null,null,null,null,null,null,null,null,null,null,null,null,null,null,null,null,null,null,null,null,null,null,null,null,null,null,null,null,null,null," "," "," "," "]
[null,null,null,null,null,null,null,null,null,null,null,null,null,null,null,null,null,null,null,null,null,null,null,null,null,null,null,null,null,null,null,null,null,null,null,null,null,null,null,null,null,null,"Su","M","T","W","Th","F","Sa","Su","M","T","W","Th","F","Sa","Su","M","T","W","Th","F","Sa","Su","M","T","W","Th","F","Sa","Su","M","T","W","Th","F","Sa","Su","M","T"]
["D1",null,null,null,null,null,null,null,null,null,null,null,null,null,null,null,"\"go & see\" at the process to review the actual/kaizen condition",null,null,null,null,null,null,null,null,null,null,null,null,null,null,null,null,null,null,null,null,null,null,"Daily",null,null,"Ù","Ù","Ù","Ù","Ù","Ù","Ù","Ù","Ù","Ù","Ù","Ù","Ù","Ù","Ù","Ù","Ù","Ù","Ù","Ù","Ù","Ù","Ù","Ù","Ù","Ù","Ù","Ù","Ù","Ù","Ù","Ù","Ù","Ù","Ù","Ù","Ù","Ù"," ",null,null,null,null,null,null," "]
["D2",null,null,null,null,null,null,null,null,null,null,null,null,null,null,null,"Check and approve requests for Travel, SAP, HR",null,null,null,null,null,null,null,null,null,null,null,null,null,null,null,null,null,null,null,null,null,null,null,null,null,"Ù","Ù","Ù","Ù","Ù","Ù","Ù","Ù","Ù","Ù","Ù","Ù","Ù","Ù","Ù","Ù","Ù","Ù","Ù","Ù","Ù","Ù","Ù","Ù","Ù","Ù","Ù","Ù","Ù","Ù","Ù","Ù","Ù","Ù","Ù","Ù","Ù","Ù",null,null,null,null,null,null,null,"Ù","Planned Task",null,null,null,null,null," "]
["D3",null,null,null,null,null,null,null,null,null,null,null,null,null,null,null,"Walk FC, safety & 5S check",null,null,null,null,null,null,null,null,null,null,null,null,null,null,null,null,null,null,null,null,null,null,null,null,null,"Ù","Ù","Ù","Ù","Ù","Ù","Ù","Ù","Ù","Ù","Ù","Ù","Ù","Ù","Ù","Ù","Ù","Ù","Ù","Ù","Ù","Ù","Ù","Ù","Ù","Ù","Ù","Ù","Ù","Ù","Ù","Ù","Ù","Ù","Ù","Ù","Ù","Ù",null,null,null,null,null,null,null,"Ö","Completed (on-time/early) Task"]
["D4",null,null,null,null,null,null,null,null,null,null,null,null,null,null,null,"Complete minimum of one safety save",null,null,null,null,null,null,null,null,null,null,null,null,null,null,null,null,null,null,null,null,null,null,null,null,null,"Ù","Ù","Ù","Ù","Ù","Ù","Ù","Ù","Ù","Ù","Ù","Ù","Ù","Ù","Ù","Ù","Ù","Ù","Ù","Ù","Ù","Ù","Ù","Ù","Ù","Ù","Ù","Ù","Ù","Ù","Ù","Ù","Ù","Ù","Ù","Ù","Ù","Ù",null,null,null,null,null,null,null,"Ü","Completed Late"]
["D5",null,null,null,null,null,null,null,null,null,null,null,null,null,null,null,"Review VOA board, update and assign actions",null,null,null,null,null,null,null,null,null,null,null,null,null,null,null,null,null,null,null,null,null,null,null,null,null,"Ù","Ù","Ù","Ù","Ù","Ù","Ù","Ù","Ù","Ù","Ù","Ù","Ù","Ù","Ù","Ù","Ù","Ù","Ù","Ù","Ù","Ù","Ù","Ù","Ù","Ù","Ù","Ù","Ù","Ù","Ù","Ù","Ù","Ù","Ù","Ù","Ù","Ù"]
["D6",null,null,null,null,null,null,null,null,null,null,null,null,null,null,null,null,null,null,null,null,null,null,null,null,null,null,null,null,null,null,null,null,null,null,null,null,null,null,null,null,null,"Ù","Ù","Ù","Ù","Ù","Ù","Ù","Ù","Ù","Ù","Ù","Ù","Ù","Ù","Ù","Ù","Ù","Ù","Ù","Ù","Ù","Ù","Ù","Ù","Ù","Ù","Ù","Ù","Ù","Ù","Ù","Ù","Ù","Ù","Ù","Ù","Ù","Ù"]
["D7",null,null,null,null,null,null,null,null,null,null,null,null,null,null,null,null,null,null,null,null,null,null,null,null,null,null,null,null,null,null,null,null,null,null,null,null,null,null,null,null,null,"Ù","Ù","Ù","Ù","Ù","Ù","Ù","Ù","Ù","Ù","Ù","Ù","Ù","Ù","Ù","Ù","Ù","Ù","Ù","Ù","Ù","Ù","Ù","Ù","Ù","Ù","Ù","Ù","Ù","Ù","Ù","Ù","Ù","Ù","Ù","Ù","Ù","Ù"]
["D7",null," ",null,null,null,null,null,null,null,null,null,null,null,null,null,null,null,null,null,null,null,null,null,null,null,null,null,null,null,null,null,null,null,null,null,null,null,null,null,null,null,null,null,null,null,null,null,null,null,null,null,null,null,null,null,null,null,null,null,null,null,null,null,null,null,null,null,null,null,null,null,null,"Ù","Ù","Ù","Ù","Ù","Ù","Ù"]
["D6",null," ",null,null,null,null,null,null,null,null,null,null,null,null,null,"Conduct daily meeting to dive deep on top issues/problems",null,null,null,null,null,null,null,null,null,null,null,null,null,null,null,null,null,null,null,null,null,null,null,null,null,null,null,null,null,null,null,null,null,null,null,null,null,null,null,null,null,null,null,null,null,null,null,null,null,null,null,null,null,null,null,null,"Ù","Ù","Ù","Ù","Ù","Ù","Ù",null,null,null,null,null,null,null," "," "]
["D7",null," ",null,null,null,null,null,null,null,null,null,null,null,null,null,"Identify daily learning opportunity - from a person, meeting, system",null,null,null,null,null,null,null,null,null,null,null,null,null,null,null,null,null,null,null,null,null,null,null,null,null,null,null,null,null,null,null,null,null,null,null,null,null,null,null,null,null,null,null,null,null,null,null,null,null,null,null,null,null,null,null,null,"Ù","Ù","Ù","Ù","Ù","Ù","Ù"]
["D8",null," ",null,null,null,null,null,null,null,null,null,null,null,null,null,null,null,null,null,null,null,null,null,null,null,null,null,null,null,null,null,null,null,null,null,null,null,null,null,null,null,null,null,null,null,null,null,null,null,null,null,null,null,null,null,null,null,null,null,null,null,null,null,null,null,null,null,null,null,null,null,null,null,null,null,"Ù","Ù"]
["D9",null,null,null,null,null,null,null,null,null,null,null,null,null,null,null,null,null,null,null,null,null,null,null,null,null,null,null,null,null,null,null,null,null,null,null,null,null,null,null,null,null,null,null,null,null,null,null,null,null,null,null,null,null,null,null,null,null,null,null,null,null,null,null,null,null,null,null,null,null,null,null,null,null,null,null,"Ù","Ù"]
["D10",null,null,null,null,null,null,null,null,null,null,null,null,null,null,null,null,null,null,null,null,null,null,null,null,null,null,null,null,null,null,null,null,null,null,null,null,null,null,null,null,null,null,null,null,null,null,null,null,null,null,null,null,null,null,null,null,null,null,null,null,null,null,null,null,null,null,null,null,null,null,null,null,null,null,null,"Ù","Ù"]
["D11",null,null,null,null,null,null,null,null,null,null,null,null,null,null,null,null,null,null,null,null,null,null,null,null,null,null,null,null,null,null,null,null,null,null,null,null,null,null,null,null,null,null,null,null,null,null,null,null,null,null,null,null,null,null,null,null,null,null,null,null,null,null,null,null,null,null,null,null,null,null,null,null,null,null,null,"Ù","Ù"]
["D12",null,null,null,null,null,null,null,null,null,null,null,null,null,null,null,null,null,null,null,null,null,null,null,null,null,null,null,null,null,null,null,null,null,null,null,null,null,null,null,null,null,null,null,null,null,null,null,null,null,null,null,null,null,null,null,null,null,null,null,null,null,null,null,null,null,null,null,null,null,null,null,null,null,null,null,"Ù","Ù"]
["W1",null,null,null,null,null,null,null,null,null,null,null,null,null,null,null,"Review schedule, set 1:2:1's, to-do list, action log, organize for week",null,null,null,null,null,null,null,null,null,null,null,null,null,null,null,null,null,null,null,null,null,null,"Weekly",null,null,null,"Ù",null,"Ù",null,"Ù",null,null,"Ù",null,"Ù",null,"Ù",null,null,"Ù",null,"Ù",null,"Ù",null,null,"Ù",null,"Ù",null,"Ù",null,null,"Ù",null,"Ù",null,"Ù",null,null,"Ù"]
["W2",null,null,null,null,null,null,null,null,null,null,null,null,null,null,null,"Conduct meeting with leaders, action log review, weekly agenda review"]
["W3",null,null,null,null,null,null,null,null,null,null,null,null,null,null,null,"Meet with each direct report - action log, develp't, 2 way feedback",null,null,null,null,null,null,null,null,null,null,null,null,null,null,null,null,null,null,null,null,null,null,null,null,null,null,null,null,null,null,null,null,null,null,null,null,null,null,null,null,null,null,null,null,null,null,null,null,null,null,null,null,null,null,null,null,null,null,null,null,null,null,null,null,null,null,null,null,null,null,null,null,null,{"$f":"'LSW Set-up'!L1","v":"2023-04-21"},"Date selection"]
["W4",null,null,null,null,null,null,null,null,null,null,null,null,null,null,null,"Meet with Mgr within FC,  2 way feedback, develop't",null,null,null,null,null,null,null,null,null,null,null,null,null,null,null,null,null,null,null,null,null,null,null,null,null,null,null,null,null,null,null,null,null,null,null,null,null,null,null,null,null,null,null,null,null,null,null,null,null,null,null,null,null,null,null,null,null,null,null,null,null,null,null,null,null,null,null,null,null,null,null,null,null,{"$f":"MONTH(CM22)","v":4},"Month#"]
["W5",null,null,null,null,null,null,null,null,null,null,null,null,null,null,null,"Update and status items captured on the NPRC/NPI action log, F/U",null,null,null,null,null,null,null,null,null,null,null,null,null,null,null,null,null,null,null,null,null,null,null,null,null,null,null,null,null,null,null,null,null,null,null,null,null,null,null,null,null,null,null,null,null,null,null,null,null,null,null,null,null,null,null,null,null,null,null,null,null,null,null,null,null,null,null,null,null,null,null,null,null,1,"1st Day of Month"]
["W6",null,null,null,null,null,null,null,null,null,null,null,null,null,null,null,"Document weekly key points in One-note",null,null,null,null,null,null,null,null,null,null,null,null,null,null,null,null,null,null,null,null,null,null,null,null,null,null,null,null,null,null,null,null,null,null,null,null,null,null,null,null,null,null,null,null,null,null,null,null,null,null,null,null,null,null,null,null,null,null,null,null,null,null,null,null,null,null,null,null,null,null,null,null,null,{"$f":"YEAR(CM22)","v":2023},"Year"]
["W7",null,null,null,null,null,null,null,null,null,null,null,null,null,null,null,"Meet/contact personal or professional associate for F/U"]
["W8",null,null,null,null,null,null,null,null,null,null,null,null,null,null,null,"Review metrics 4x4 call - call-outs, questions, help needed"]
["W9",null,null,null,null,null,null,null,null,null,null,null,null,null,null,null,"Prepare for weekly CA WBR - call-outs, questions, help needed",null,null,null,null,null,null,null,null,null,null,null,null,null,null,null,null,null,null,null,null,null,null,null,null,null,null,null,null,null,null,null,null,null,null,null,null,null,null,null,null,null,null,null,null,null,null,null,null,null,null,null,null,null,null,null,null,null,null,null,null,null,null,null,null,null,null,null,null,null,null,null,null,null,{"$f":"DATE(CM25,CM23,CM24)","v":"2023-04-01"},"Month date"]
["W10",null,null,null,null,null,null,null,null,null,null,null,null,null,null,null,"Review/respond to weekly FC reports from site leaders/GMs",null,null,null,null,null,null,null,null,null,null,null,null,null,null,null,null,null,null,null,null,null,null,null,null,null,null,null,null,null,null,null,null,null,null,null,null,null,null,null,null,null,null,null,null,null,null,null,null,null,null,null,null,null,null,null,null,null,null,null,null,null,null,null,null,null,null,null,null,null,null,null,null,null,{"$f":"WEEKDAY(CM28)","v":7},"Day of the week"]
["W11",null,null,null,null,null,null,null,null,null,null,null,null,null,null,null,null,null,null,null,null,null,null,null,null,null,null,null,null,null,null,null,null,null,null,null,null,null,null,null,null,null,null,null,null,null,null,null,null,null,null,null,null,null,null,null,null,null,null,null,null,null,null,null,null,null,null,null,null,null,null,null,null,null,null,null,null,null,null,null,null,null,null,null,null,null,null,null,null,null,{"$f":"DAY(EOMONTH(CM28,0))","v":"1900-01-30"},"Days in month"]
["W12"]
["M1",null,null,null,null,null,null,null,null,null,null,null,null,null,null,null,"Conduct workplace EH&S inspection, document/action findings on log",null,null,null,null,null,null,null,null,null,null,null,null,null,null,null,null,null,null,null,null,null,null,"Monthly"]
["M2",null,null,null,null,null,null,null,null,null,null,null,null,null,null,null,"Plan and schedule tasks on the Ldr Std work chart for the next month"]
["M3",null,null,null,null,null,null,null,null,null,null,null,null,null,null,null,"Walk entire exterior of FC property, confirm security, 5S"]
["M4",null,null,null,null,null,null,null,null,null,null,null,null,null,null,null,"Review maintenance shop for 5S, safety, proper storage"]
["M5",null,null,null,null,null,null,null,null,null,null,null,null,null,null,null,"Confirm cleanliness, equipment operations, 5S"]
["M6",null,null,null,null,null,null,null,null,null,null,null,null,null,null,null,"Cofirm min 3 PIT operators have valid license"]
["M7",null,null,null,null,null,null,null,null,null,null,null,null,null,null,null,"Meet with X-section of EE base, 2 way feedback, bus updates"]
["M8",null,null,null,null,null,null,null,null,null,null,null,null,null,null,null,"Conduct All hands meeting for all assoc., provide business update"]
["M9",null,null,null,null,null,null,null,null,null,null,null,null,null,null,null,"Submit any outstanding expenses"]
["M10"]
["Mid-long term Standard Work",null,null,null,null,null,null,null,null,null,null,null,null,null,null,null,null,null,null,null,null,null,null,null,null,null,null,null,null,null,null,null,null,null,null,null,null,null,null,"Freq",null,null,null,null,null,null,null,null,null,null,null,null,null,null,null,null,null,null,null,null,null,null,null,null,null,null,null,null,null,null,null,null,null,null,null,null,null,null,null,null,"Next Occ"]
["O1",null,null,null,null,null,null,null,null,null,null,null,null,null,null,null,null,null,null,null,null,null,null,null,null,null,null,null,null,null,null,null,null,null,null,null,null,null,null,"Yrly"]
["O2",null,null,null,null,null,null,null,null,null,null,null,null,null,null,null,null,null,null,null,null,null,null,null,null,null,null,null,null,null,null,null,null,null,null,null,null,null,null,"Yrly"]
["O3",null,null,null,null,null,null,null,null,null,null,null,null,null,null,null,null,null,null,null,null,null,null,null,null,null,null,null,null,null,null,null,null,null,null,null,null,null,null,"Yrly"]
["O4",null,null,null,null,null,null,null,null,null,null,null,null,null,null,null,null,null,null,null,null,null,null,null,null,null,null,null,null,null,null,null,null,null,null,null,null,null,null,"Yrly"]
["O5",null,null,null,null,null,null,null,null,null,null,null,null,null,null,null,null,null,null,null,null,null,null,null,null,null,null,null,null,null,null,null,null,null,null,null,null,null,null,"Yrly"]
["O6",null,null,null,null,null,null,null,null,null,null,null,null,null,null,null,null,null,null,null,null,null,null,null,null,null,null,null,null,null,null,null,null,null,null,null,null,null,null,"Yrly"]
["O7",null,null,null,null,null,null,null,null,null,null,null,null,null,null,null,null,null,null,null,null,null,null,null,null,null,null,null,null,null,null,null,null,null,null,null,null,null,null,"Yrly"]
["O8",null,null,null,null,null,null,null,null,null,null,null,null,null,null,null,null,null,null,null,null,null,null,null,null,null,null,null,null,null,null,null,null,null,null,null,null,null,null,"Yrly"]
["O9",null,null,null,null,null,null,null,null,null,null,null,null,null,null,null,"Initiate next FY hoshin planning cycle",null,null,null,null,null,null,null,null,null,null,null,null,null,null,null,null,null,null,null,null,null,null,"Yrly"]
["O10"]
[]
[null,null," - Weekend",null,null,null,null,null," - Vacation",null,null,null,null," - OOTO on business",null,null,null,null,null,null,null,null,null,null,null,null,null,null,null,null,null,null,null,null,null,null,null,null,null,null,null,null,null,null,null,null,null,null,"Ù"," - Planned Task",null,null,null,null,null,"Ö"," - Completed Task (On-time/early)",null,null,null,null,null,null,null,null,null,null,null,"Ü"," - Completed Late",null,null,null,null,null,null,"©www.glennsommerville.com"]

{"sheet":"Weekly Planner","index":4,"n_rows":53,"n_cols":29,"rows_kept":53,"cut":false,"hidden":false,"merged":[[50,1,50,12],[50,15,50,18],[51,1,51,12],[51,15,51,18],[52,1,52,12],[52,15,52,18],[47,1,47,12],[47,14,47,18],[48,1,48,12],[48,15,48,18],[49,1,49,12],[49,15,49,18],[44,1,44,12],[44,15,44,18],[45,1,45,12],[45,15,45,18],[46,1,46,12],[46,15,46,18],[41,1,41,12],[41,15,41,18],[42,1,42,12],[42,15,42,18],[43,1,43,12],[43,15,43,18],[40,1,40,12],[40,15,40,18],[34,1,34,12],[34,14,34,18],[35,1,35,12],[35,15,35,18],[36,1,36,12],[36,15,36,18],[37,1,37,12],[37,15,37,18],[38,1,38,12],[38,15,38,18],[39,1,39,12],[33,1,33,12],[33,15,33,18],[26,1,26,12],[27,1,27,12],[27,15,27,18],[28,1,28,12],[28,15,28,18],[29,1,29,12],[29,15,29,18],[30,1,30,12],[31,1,31,12],[31,15,31,18],[32,1,32,12],[32,15,32,18],[25,1,25,12],[25,15,25,18],[18,1,18,12],[19,1,19,12],[19,15,19,18],[20,1,20,12],[20,15,20,18],[21,1,21,12],[21,15,21,18],[22,1,22,12],[23,1,23,12],[23,15,23,18],[24,1,24,12],[24,15,24,18],[15,1,15,12],[15,15,15,18],[16,1,16,12],[16,15,16,18],[17,1,17,12],[17,15,17,18],[0,0,0,10],[0,11,0,16],[3,0,3,7],[13,0,13,12],[14,1,14,12],[14,15,14,18]]}
["WEEK of: ",null,null,null,null,null,null,"2018-04-08",null,null,null,"2023-04-21"]
[]
[null,null,null,null,null,null,null,null,null,"5 Choices:"]
[{"$f":"EDATE($AC$6,0)","v":"2023-04-01"},null,null,null,null,null,null,null,null," 1. Act on important, don't react to urgent",null,null,null,null,null,null,null,null,null,null,null,null,null,null,null,null,null,null,{"$f":"YEAR(L1)","v":2023}]
["Wk","Sun","Mon","Tue","Wed","Thu","Fri","Sat",null," 2. Go4 Extraordinary, not settle for ordinary",null,null,null,null,null,null,null,null,null,null,null,null,null,null,null,null,null,null,{"$f":"MONTH(L1)","v":4}]
[{"$f":"WEEKNUM(H6)","v":13},{"$f":"IF(WEEKDAY(A4)=1,A4,\"\")","v":""},{"$f":"IF(B6<>\"\",B6+1,IF(WEEKDAY(A4)=2,A4,\"\"))","v":""},{"$f":"IF(C6<>\"\",C6+1,IF(WEEKDAY($A$4)=3,$A$4,\"\"))","v":""},{"$f":"IF(D6<>\"\",D6+1,IF(WEEKDAY($A$4)=4,$A$4,\"\"))","v":""},{"$f":"IF(E6<>\"\",E6+1,IF(WEEKDAY($A$4)=5,$A$4,\"\"))","v":""},{"$f":"IF(F6<>\"\",F6+1,IF(WEEKDAY($A$4)=6,$A$4,\"\"))","v":""},{"$f":"IF(G6<>\"\",G6+1,IF(WEEKDAY($A$4)=7,$A$4,\"\"))","v":"2023-04-01"},null," 3. Schedule big rocks, don't sort gravel",null,null,null,null,null,null,null,null,null,null,null,null,null,null,null,null,null,null,{"$f":"DATE(AC4,AC5,1)","v":"2023-04-01"}]
[{"$f":"WEEKNUM(B7)","v":14},{"$f":"H6+1","v":"2023-04-02"},{"$f":"B7+1","v":"2023-04-03"},{"$f":"C7+1","v":"2023-04-04"},"2023-04-05","2023-04-06","2023-04-07","2023-04-08",null," 4. Rule tech, don't let it rule you",null,null,null,null,null,null,null,null,null,null,null,null,null,null,null,null,null,null,{"$f":"WEEKNUM(L1)","v":16}]
[{"$f":"WEEKNUM(B8)","v":15},{"$f":"H7+1","v":"2023-04-09"},{"$f":"B8+1","v":"2023-04-10"},"2023-04-11","2023-04-12","2023-04-13","2023-04-14","2023-04-15",null," 5. Fuel your fire, don't burn out"]
[{"$f":"WEEKNUM(B9)","v":16},"2023-04-16","2023-04-17","2023-04-18","2023-04-19","2023-04-20","2023-04-21","2023-04-22",null,"Key Dates/Events:"]
[{"$f":"WEEKNUM(B10)","v":17},"2023-04-23","2023-04-24","2023-04-25","2023-04-26","2023-04-27","2023-04-28","2023-04-29",null,"   O - ",null,"   O - "]
[{"$f":"WEEKNUM(B11)","v":18},"2023-04-30","2023-05-01","2023-05-02","2023-05-03","2023-05-04","2023-05-05","2023-05-06",null,"   O -",null,"   O - "]
[null,null,null,null,null,null,null,null,null,null,null,null,null,null," ",null," "]
[null,null,null,null,null,null," "]
["Daily Actions/Things to be done:",null,null,null,null,null,null,null,null,null,null,null,null,null,"This Week's Top Priorities/Objectives:"]
["Q1"]
["Q1"]
["Q1"]
["Q1"]
["Q1",null,null,null,null,null,null,null,null,null,null,null,null,null,"Family:",null," "]
["Q1",null,null,null,null,null,null,null,null,null,null,null,null,null,"Q2"]
["Q1",null,null,null,null,null,null,null,null,null,null,null,null,null,"Q2"]
["Q1",null,null,null,null,null,null,null,null,null,null,null,null,null,"Q2"," "]
["Q1",null,null,null,null,null,null,null,null,null,null,null,null,null,"Relationship:"]
["Q1",null,null,null,null,null,null,null,null,null,null,null,null,null,"Q2"]
["Q1",null,null,null,null,null,null,null,null,null,null,null,null,null,"Q2"]
["Q1",null,null,null,null,null,null,null,null,null,null,null,null,null,"Q2"]
["Q2",null,null,null,null,null,null,null,null,null,null,null,null,null,"Friends:"]
["Q2"]
["Q2"]
["Q2"]
["Q2",null,null,null,null,null,null,null,null,null,null,null,null,null,"Home:",null," "]
["Q2",null,null,null,null,null,null,null,null,null,null,null,null,null," "]
["Q2",null,null,null,null,null,null,null,null,null,null,null,null,null," "]
["Q2"]
["Q2",null,null,null,null,null,null,null,null,null,null,null,null,null,"Professional/Personal"]
["Q2"]
["Q2"]
["Q2"]
["Q2"]
["Q2",null,null,null,null,null,null,null,null,null,null,null,null,null,"Messages/Calls to Make:"]
["Q2"]
["Q2"]
["Q2",null,null,null,null,null,null,null,null,null,null,null,null,null,null," "]
["Q2",null,null,null,null,null,null,null,null,null,null,null,null,null,null," "]
["Q2"]
[null,null,null,null,null,null,null,null,null,null,null,null,null,null,null," "]
[]
[null,null,null,null,null,null,null,null,null,null,null,null,null,null,"Meetings to schedule:"]
[]
[]
[]
[null,null,null,null,null,null,null,null,null,null,null,null,null,null,null," "]
[null,null,null,null,null,null,null,null,null,null,null,null,null,null,null," "]

{"sheet":"Work(W1)","index":5,"n_rows":119,"n_cols":10,"rows_kept":119,"cut":false,"hidden":false,"merged":[[0,0,1,9],[5,0,6,0],[5,1,6,1],[5,2,6,2],[5,3,6,3],[5,4,6,4],[5,5,6,5],[5,7,6,7],[5,8,6,8],[5,9,6,9],[5,6,6,6]]}
["Work (W1)"]
[]
[]
[null,null,null,"WEEK OF:",{"$f":"'Weekly Planner'!L1","v":"2023-04-21"}," "]
[]
["#","Rank","Predecessor","Successor","Description","Who","Matrix","Target Date","Log Date","Complete"]
[]
[1,null,null,null,null,null,null,null,null," "]
[2,null,null,null,null,null,null,null,null," "]
[3,null,null,null,null,null,null,null,null," "]
[4,null,null,null,null,null,null,null,null," "]
[5,null,null,null,null,null,null,null,null," "]
[6,null,null,null,null,null,null,null,null," "]
[7,null,null,null,null,null,null,null,null," "]
[8,null,null,null,null,null,null,null,null," "]
[10,null,null,null,null,null,null,null,null," "]
[11,null,null,null,null,null,null,null,null," "]
[12,null,null,null,null,null,null,null,null," "]
[13,null,null,null,null,null,null,null,null," "]
[14,null,null,null,null,null,null,null,null," "]
[15,null,null,null,null,null,null,null,null," "]
[16,null,null,null,null,null,null,null,null," "]
[17,null,null,null,null,null,null,null,null," "]
[18,null,null,null,null,null,null,null,null," "]
[19,null,null,null,null,null,null,null,null," "]
[20,null,null,null,null,null,null,null,null," "]
[21,null,null,null,null,null,null,null,null," "]
[22,null,null,null,null,null,null,null,null," "]
[23,null,null,null,null,null,null,null,null," "]
[24,null,null,null,null,null,null,null,null," "]
[25,null,null,null,null,null,null,null,null," "]
[26,null,null,null,null,null,null,null,null," "]
[27,null,null,null,null,null,null,null,null," "]
[28,null,null,null,null,null,null,null,null," "]
[29,null,null,null,null,null,null,null,null," "]
[30,null,null,null,null,null,null,null,null," "]
[31,null,null,null,null,null,null,null,null," "]
[32,null,null,null,null,null,null,null,null," "]
[33,null,null,null,null,null,null,null,null," "]
[34,null,null,null,null,null,null,null,null," "]
[35,null,null,null,null,null,null,null,null," "]
[36,null,null,null,null,null,null,null,null," "]
[37,null,null,null,null,null,null,null,null," "]
[38,null,null,null,null,null,null,null,null," "]
[39,null,null,null,null,null,null,null,null," "]
[40,null,null,null,null,null,null,null,null," "]
[41,null,null,null,null,null,null,null,null," "]
[42,null,null,null,null,null,null,null,null," "]
[43,null,null,null,null,null,null,null,null," "]
[44,null,null,null,null,null,null,null,null," "]
[45,null,null,null,null,null,null,null,null," "]
[46,null,null,null,null,null,null,null,null," "]
[47,null,null,null,null,null,null,null,null," "]
[48,null,null,null,null,null,null,null,null," "]
[49,null,null,null,null,null,null,null,null," "]
[50,null,null,null,null,null,null,null,null," "]
[51,null,null,null,null,null,null,null,null," "]
[52,null,null,null,null,null,null,null,null," "]
[53,null,null,null,null,null,null,null,null," "]
[54,null,null,null,null,null,null,null,null," "]
[55,null,null,null,null,null,null,null,null," "]
[56,null,null,null,null,null,null,null,null," "]
[57,null,null,null,null,null,null,null,null," "]
[58,null,null,null,null,null,null,null,null," "]
[59,null,null,null,null,null,null,null,null," "]
[60,null,null,null,null,null,null,null,null," "]
[61,null,null,null,null,null,null,null,null," "]
[62,null,null,null,null,null,null,null,null," "]
[63,null,null,null,null,null,null,null,null," "]
[64,null,null,null,null,null,null,null,null," "]
[65,null,null,null,null,null,null,null,null," "]
[66,null,null,null,null,null,null,null,null," "]
[67,null,null,null,null,null,null,null,null," "]
[68,null,null,null,null,null,null,null,null," "]
[69,null,null,null,null,null,null,null,null," "]
[70,null,null,null,null,null,null,null,null," "]
[71,null,null,null,null,null,null,null,null," "]
[72,null,null,null,null,null,null,null,null," "]
[73,null,null,null,null,null,null,null,null," "]
[74,null,null,null,null,null,null,null,null," "]
[75,null,null,null,null,null,null,null,null," "]
[76,null,null,null,null,null,null,null,null," "]
[77,null,null,null,null,null,null,null,null," "]
[78,null,null,null,null,null,null,null,null," "]
[79,null,null,null,null,null,null,null,null," "]
[80,null,null,null,null,null,null,null,null," "]
[81,null,null,null,null,null,null,null,null," "]
[82,null,null,null,null,null,null,null,null," "]
[83,null,null,null,null,null,null,null,null," "]
[84,null,null,null,null,null,null,null,null," "]
[85,null,null,null,null,null,null,null,null," "]
[86,null,null,null,null,null,null,null,null," "]
[87,null,null,null,null,null,null,null,null," "]
[88,null,null,null,null,null,null,null,null," "]
[89,null,null,null,null,null,null,null,null," "]
[90,null,null,null,null,null,null,null,null," "]
[91,null,null,null,null,null,null,null,null," "]
[92,null,null,null,null,null,null,null,null," "]
[93,null,null,null,null,null,null,null,null," "]
[94,null,null,null,null,null,null,null,null," "]
[95,null,null,null,null,null,null,null,null," "]
[96,null,null,null,null,null,null,null,null," "]
[97,null,null,null,null,null,null,null,null," "]
[98,null,null,null,null,null,null,null,null," "]
[99,null,null,null,null,null,null,null,null," "]
[100,null,null,null,null,null,null,null,null," "]
[101,null,null,null,null,null,null,null,null," "]
[102,null,null,null,null,null,null,null,null," "]
[103,null,null,null,null,null,null,null,null," "]
[104,null,null,null,null,null,null,null,null," "]
[105,null,null,null,null,null,null,null,null," "]
[106,null,null,null,null,null,null,null,null," "]
[107,null,null,null,null,null,null,null,null," "]
[108,null,null,null,null,null,null,null,null," "]
[109,null,null,null,null,null,null,null,null," "]
[110,null,null,null,null,null,null,null,null," "]
[111,null,null,null,null,null,null,null,null," "]
[112,null,null,null,null,null,null,null,null," "]
[113,null,null,null,null,null,null,null,null," "]

{"sheet":"Work(W2)","index":6,"n_rows":120,"n_cols":9,"rows_kept":120,"cut":false,"hidden":false,"merged":[[0,0,1,8],[5,0,6,0],[5,1,6,1],[5,2,6,2],[5,3,6,3],[5,4,6,4],[5,5,6,5],[5,6,6,6],[5,7,6,7],[5,8,6,8]]}
["Work (W2)"]
[]
[]
[null,null,null,"WEEK OF:",{"$f":"'Weekly Planner'!L1","v":"2023-04-21"}," "]
[]
["#","Rank","Predecessor","Successor","Description","Who","Target Date","Log Date","Complete"]
[]
[1,null,null,null,null,null,null,null," "]
[2,null,null,null,null,null,null,null," "]
[3,null,null,null,null,null,null,null," "]
[4,null,null,null,null,null,null,null," "]
[5,null,null,null,null,null,null,null," "]
[6,null,null,null,null,null,null,null," "]
[7,null,null,null,null,null,null,null," "]
[8,null,null,null,null,null,null,null," "]
[9,null,null,null,null,null,null,null," "]
[10,null,null,null,null,null,null,null," "]
[11,null,null,null,null,null,null,null," "]
[12,null,null,null,null,null,null,null," "]
[13,null,null,null,null,null,null,null," "]
[14,null,null,null,null,null,null,null," "]
[15,null,null,null,null,null,null,null," "]
[16,null,null,null,null,null,null,null," "]
[17,null,null,null,null,null,null,null," "]
[18,null,null,null,null,null,null,null," "]
[19,null,null,null,null,null,null,null," "]
[20,null,null,null,null,null,null,null," "]
[21,null,null,null,null,null,null,null," "]
[22,null,null,null,null,null,null,null," "]
[23,null,null,null,null,null,null,null," "]
[24,null,null,null,null,null,null,null," "]
[25,null,null,null,null,null,null,null," "]
[26,null,null,null,null,null,null,null," "]
[27,null,null,null,null,null,null,null," "]
[28,null,null,null,null,null,null,null," "]
[29,null,null,null,null,null,null,null," "]
[30,null,null,null,null,null,null,null," "]
[31,null,null,null,null,null,null,null," "]
[32,null,null,null,null,null,null,null," "]
[33,null,null,null,null,null,null,null," "]
[34,null,null,null,null,null,null,null," "]
[35,null,null,null,null,null,null,null," "]
[36,null,null,null,null,null,null,null," "]
[37,null,null,null,null,null,null,null," "]
[38,null,null,null,null,null,null,null," "]
[39,null,null,null,null,null,null,null," "]
[40,null,null,null,null,null,null,null," "]
[41,null,null,null,null,null,null,null," "]
[42,null,null,null,null,null,null,null," "]
[43,null,null,null,null,null,null,null," "]
[44,null,null,null,null,null,null,null," "]
[45,null,null,null,null,null,null,null," "]
[46,null,null,null,null,null,null,null," "]
[47,null,null,null,null,null,null,null," "]
[48,null,null,null,null,null,null,null," "]
[49,null,null,null,null,null,null,null," "]
[50,null,null,null,null,null,null,null," "]
[51,null,null,null,null,null,null,null," "]
[52,null,null,null,null,null,null,null," "]
[53,null,null,null,null,null,null,null," "]
[54,null,null,null,null,null,null,null," "]
[55,null,null,null,null,null,null,null," "]
[56,null,null,null,null,null,null,null," "]
[57,null,null,null,null,null,null,null," "]
[58,null,null,null,null,null,null,null," "]
[59,null,null,null,null,null,null,null," "]
[60,null,null,null,null,null,null,null," "]
[61,null,null,null,null,null,null,null," "]
[62,null,null,null,null,null,null,null," "]
[63,null,null,null,null,null,null,null," "]
[64,null,null,null,null,null,null,null," "]
[65,null,null,null,null,null,null,null," "]
[66,null,null,null,null,null,null,null," "]
[67,null,null,null,null,null,null,null," "]
[68,null,null,null,null,null,null,null," "]
[69,null,null,null,null,null,null,null," "]
[70,null,null,null,null,null,null,null," "]
[71,null,null,null,null,null,null,null," "]
[72,null,null,null,null,null,null,null," "]
[73,null,null,null,null,null,null,null," "]
[74,null,null,null,null,null,null,null," "]
[75,null,null,null,null,null,null,null," "]
[76,null,null,null,null,null,null,null," "]
[77,null,null,null,null,null,null,null," "]
[78,null,null,null,null,null,null,null," "]
[79,null,null,null,null,null,null,null," "]
[80,null,null,null,null,null,null,null," "]
[81,null,null,null,null,null,null,null," "]
[82,null,null,null,null,null,null,null," "]
[83,null,null,null,null,null,null,null," "]
[84,null,null,null,null,null,null,null," "]
[85,null,null,null,null,null,null,null," "]
[86,null,null,null,null,null,null,null," "]
[87,null,null,null,null,null,null,null," "]
[88,null,null,null,null,null,null,null," "]
[89,null,null,null,null,null,null,null," "]
[90,null,null,null,null,null,null,null," "]
[91,null,null,null,null,null,null,null," "]
[92,null,null,null,null,null,null,null," "]
[93,null,null,null,null,null,null,null," "]
[94,null,null,null,null,null,null,null," "]
[95,null,null,null,null,null,null,null," "]
[96,null,null,null,null,null,null,null," "]
[97,null,null,null,null,null,null,null," "]
[98,null,null,null,null,null,null,null," "]
[99,null,null,null,null,null,null,null," "]
[100,null,null,null,null,null,null,null," "]
[101,null,null,null,null,null,null,null," "]
[102,null,null,null,null,null,null,null," "]
[103,null,null,null,null,null,null,null," "]
[104,null,null,null,null,null,null,null," "]
[105,null,null,null,null,null,null,null," "]
[106,null,null,null,null,null,null,null," "]
[107,null,null,null,null,null,null,null," "]
[108,null,null,null,null,null,null,null," "]
[109,null,null,null,null,null,null,null," "]
[110,null,null,null,null,null,null,null," "]
[111,null,null,null,null,null,null,null," "]
[112,null,null,null,null,null,null,null," "]
[113,null,null,null,null,null,null,null," "]

{"sheet":"To-do List (TD)","index":7,"n_rows":120,"n_cols":9,"rows_kept":120,"cut":false,"hidden":false,"merged":[[0,0,1,8],[5,0,6,0],[5,1,6,1],[5,2,6,2],[5,3,6,3],[5,4,6,4],[5,5,6,5],[5,6,6,6],[5,7,6,7],[5,8,6,8]]}
["To-do List (TD)"]
[]
[]
[null,null,null,"WEEK OF:",{"$f":"'Weekly Planner'!L1","v":"2023-04-21"}," "]
[]
["#","Rank","Predecessor","Successor","Description","Who","Target Date","Log Date","Complete"]
[]
[1,null,null,null,null,null,null,null," "]
[2,null,null,null,null,null,null,null," "]
[3,null,null,null,null,null,null,null," "]
[4,null,null,null,null,null,null,null," "]
[5,null,null,null,null,null,null,null," "]
[6,null,null,null,null,null,null,null," "]
[7,null,null,null,null,null,null,null," "]
[8,null,null,null,null,null,null,null," "]
[9,null,null,null,null,null,null,null," "]
[10,null,null,null,null,null,null,null," "]
[11,null,null,null,null,null,null,null," "]
[12,null,null,null,null,null,null,null," "]
[13,null,null,null,null,null,null,null," "]
[14,null,null,null,null,null,null,null," "]
[15,null,null,null,null,null,null,null," "]
[16,null,null,null,null,null,null,null," "]
[17,null,null,null,null,null,null,null," "]
[18,null,null,null,null,null,null,null," "]
[19,null,null,null,null,null,null,null," "]
[20,null,null,null,null,null,null,null," "]
[21,null,null,null,null,null,null,null," "]
[22,null,null,null,null,null,null,null," "]
[23,null,null,null,null,null,null,null," "]
[24,null,null,null,null,null,null,null," "]
[25,null,null,null,null,null,null,null," "]
[26,null,null,null,null,null,null,null," "]
[27,null,null,null,null,null,null,null," "]
[28,null,null,null,null,null,null,null," "]
[29,null,null,null,null,null,null,null," "]
[30,null,null,null,null,null,null,null," "]
[31,null,null,null,null,null,null,null," "]
[32,null,null,null,null,null,null,null," "]
[33,null,null,null,null,null,null,null," "]
[34,null,null,null,null,null,null,null," "]
[35,null,null,null,null,null,null,null," "]
[36,null,null,null,null,null,null,null," "]
[37,null,null,null,null,null,null,null," "]
[38,null,null,null,null,null,null,null," "]
[39,null,null,null,null,null,null,null," "]
[40,null,null,null,null,null,null,null," "]
[41,null,null,null,null,null,null,null," "]
[42,null,null,null,null,null,null,null," "]
[43,null,null,null,null,null,null,null," "]
[44,null,null,null,null,null,null,null," "]
[45,null,null,null,null,null,null,null," "]
[46,null,null,null,null,null,null,null," "]
[47,null,null,null,null,null,null,null," "]
[48,null,null,null,null,null,null,null," "]
[49,null,null,null,null,null,null,null," "]
[50,null,null,null,null,null,null,null," "]
[51,null,null,null,null,null,null,null," "]
[52,null,null,null,null,null,null,null," "]
[53,null,null,null,null,null,null,null," "]
[54,null,null,null,null,null,null,null," "]
[55,null,null,null,null,null,null,null," "]
[56,null,null,null,null,null,null,null," "]
[57,null,null,null,null,null,null,null," "]
[58,null,null,null,null,null,null,null," "]
[59,null,null,null,null,null,null,null," "]
[60,null,null,null,null,null,null,null," "]
[61,null,null,null,null,null,null,null," "]
[62,null,null,null,null,null,null,null," "]
[63,null,null,null,null,null,null,null," "]
[64,null,null,null,null,null,null,null," "]
[65,null,null,null,null,null,null,null," "]
[66,null,null,null,null,null,null,null," "]
[67,null,null,null,null,null,null,null," "]
[68,null,null,null,null,null,null,null," "]
[69,null,null,null,null,null,null,null," "]
[70,null,null,null,null,null,null,null," "]
[71,null,null,null,null,null,null,null," "]
[72,null,null,null,null,null,null,null," "]
[73,null,null,null,null,null,null,null," "]
[74,null,null,null,null,null,null,null," "]
[75,null,null,null,null,null,null,null," "]
[76,null,null,null,null,null,null,null," "]
[77,null,null,null,null,null,null,null," "]
[78,null,null,null,null,null,null,null," "]
[79,null,null,null,null,null,null,null," "]
[80,null,null,null,null,null,null,null," "]
[81,null,null,null,null,null,null,null," "]
[82,null,null,null,null,null,null,null," "]
[83,null,null,null,null,null,null,null," "]
[84,null,null,null,null,null,null,null," "]
[85,null,null,null,null,null,null,null," "]
[86,null,null,null,null,null,null,null," "]
[87,null,null,null,null,null,null,null," "]
[88,null,null,null,null,null,null,null," "]
[89,null,null,null,null,null,null,null," "]
[90,null,null,null,null,null,null,null," "]
[91,null,null,null,null,null,null,null," "]
[92,null,null,null,null,null,null,null," "]
[93,null,null,null,null,null,null,null," "]
[94,null,null,null,null,null,null,null," "]
[95,null,null,null,null,null,null,null," "]
[96,null,null,null,null,null,null,null," "]
[97,null,null,null,null,null,null,null," "]
[98,null,null,null,null,null,null,null," "]
[99,null,null,null,null,null,null,null," "]
[100,null,null,null,null,null,null,null," "]
[101,null,null,null,null,null,null,null," "]
[102,null,null,null,null,null,null,null," "]
[103,null,null,null,null,null,null,null," "]
[104,null,null,null,null,null,null,null," "]
[105,null,null,null,null,null,null,null," "]
[106,null,null,null,null,null,null,null," "]
[107,null,null,null,null,null,null,null," "]
[108,null,null,null,null,null,null,null," "]
[109,null,null,null,null,null,null,null," "]
[110,null,null,null,null,null,null,null," "]
[111,null,null,null,null,null,null,null," "]
[112,null,null,null,null,null,null,null," "]
[113,null,null,null,null,null,null,null," "]

{"sheet":"Personal (ME)","index":8,"n_rows":120,"n_cols":9,"rows_kept":120,"cut":false,"hidden":false,"merged":[[0,0,1,8],[5,0,6,0],[5,1,6,1],[5,2,6,2],[5,3,6,3],[5,4,6,4],[5,5,6,5],[5,6,6,6],[5,7,6,7],[5,8,6,8]]}
["Personal (ME)"]
[]
[]
[null,null,null,"WEEK OF:",{"$f":"'Weekly Planner'!L1","v":"2023-04-21"}," "]
[]
["#","Rank","Predecessor","Successor","Description","Who","Target Date","Log Date","Complete"]
[]
[1,"A",null,null,null,null,null,null," "]
[2,"B",null,null,null,null,null,null," "]
[3,"C",null,null,null,null,null,null," "]
[4,null,null,null,null,null,null,null," "]
[5,null,null,null,null,null,null,null," "]
[6,null,null,null,null,null,null,null," "]
[7,null,null,null,null,null,null,null," "]
[8,null,null,null,null,null,null,null," "]
[9,null,null,null,null,null,null,null," "]
[10,null,null,null,null,null,null,null," "]
[11,null,null,null,null,null,null,null," "]
[12,null,null,null,null,null,null,null," "]
[13,null,null,null,null,null,null,null," "]
[14,null,null,null,null,null,null,null," "]
[15,null,null,null,null,null,null,null," "]
[16,null,null,null,null,null,null,null," "]
[17,null,null,null,null,null,null,null," "]
[18,null,null,null,null,null,null,null," "]
[19,null,null,null,null,null,null,null," "]
[20,null,null,null,null,null,null,null," "]
[21,null,null,null,null,null,null,null," "]
[22,null,null,null,null,null,null,null," "]
[23,null,null,null,null,null,null,null," "]
[24,null,null,null,null,null,null,null," "]
[25,null,null,null,null,null,null,null," "]
[26,null,null,null,null,null,null,null," "]
[27,null,null,null,null,null,null,null," "]
[28,null,null,null,null,null,null,null," "]
[29,null,null,null,null,null,null,null," "]
[30,null,null,null,null,null,null,null," "]
[31,null,null,null,null,null,null,null," "]
[32,null,null,null,null,null,null,null," "]
[33,null,null,null,null,null,null,null," "]
[34,null,null,null,null,null,null,null," "]
[35,null,null,null,null,null,null,null," "]
[36,null,null,null,null,null,null,null," "]
[37,null,null,null,null,null,null,null," "]
[38,null,null,null,null,null,null,null," "]
[39,null,null,null,null,null,null,null," "]
[40,null,null,null,null,null,null,null," "]
[41,null,null,null,null,null,null,null," "]
[42,null,null,null,null,null,null,null," "]
[43,null,null,null,null,null,null,null," "]
[44,null,null,null,null,null,null,null," "]
[45,null,null,null,null,null,null,null," "]
[46,null,null,null,null,null,null,null," "]
[47,null,null,null,null,null,null,null," "]
[48,null,null,null,null,null,null,null," "]
[49,null,null,null,null,null,null,null," "]
[50,null,null,null,null,null,null,null," "]
[51,null,null,null,null,null,null,null," "]
[52,null,null,null,null,null,null,null," "]
[53,null,null,null,null,null,null,null," "]
[54,null,null,null,null,null,null,null," "]
[55,null,null,null,null,null,null,null," "]
[56,null,null,null,null,null,null,null," "]
[57,null,null,null,null,null,null,null," "]
[58,null,null,null,null,null,null,null," "]
[59,null,null,null,null,null,null,null," "]
[60,null,null,null,null,null,null,null," "]
[61,null,null,null,null,null,null,null," "]
[62,null,null,null,null,null,null,null," "]
[63,null,null,null,null,null,null,null," "]
[64,null,null,null,null,null,null,null," "]
[65,null,null,null,null,null,null,null," "]
[66,null,null,null,null,null,null,null," "]
[67,null,null,null,null,null,null,null," "]
[68,null,null,null,null,null,null,null," "]
[69,null,null,null,null,null,null,null," "]
[70,null,null,null,null,null,null,null," "]
[71,null,null,null,null,null,null,null," "]
[72,null,null,null,null,null,null,null," "]
[73,null,null,null,null,null,null,null," "]
[74,null,null,null,null,null,null,null," "]
[75,null,null,null,null,null,null,null," "]
[76,null,null,null,null,null,null,null," "]
[77,null,null,null,null,null,null,null," "]
[78,null,null,null,null,null,null,null," "]
[79,null,null,null,null,null,null,null," "]
[80,null,null,null,null,null,null,null," "]
[81,null,null,null,null,null,null,null," "]
[82,null,null,null,null,null,null,null," "]
[83,null,null,null,null,null,null,null," "]
[84,null,null,null,null,null,null,null," "]
[85,null,null,null,null,null,null,null," "]
[86,null,null,null,null,null,null,null," "]
[87,null,null,null,null,null,null,null," "]
[88,null,null,null,null,null,null,null," "]
[89,null,null,null,null,null,null,null," "]
[90,null,null,null,null,null,null,null," "]
[91,null,null,null,null,null,null,null," "]
[92,null,null,null,null,null,null,null," "]
[93,null,null,null,null,null,null,null," "]
[94,null,null,null,null,null,null,null," "]
[95,null,null,null,null,null,null,null," "]
[96,null,null,null,null,null,null,null," "]
[97,null,null,null,null,null,null,null," "]
[98,null,null,null,null,null,null,null," "]
[99,null,null,null,null,null,null,null," "]
[100,null,null,null,null,null,null,null," "]
[101,null,null,null,null,null,null,null," "]
[102,null,null,null,null,null,null,null," "]
[103,null,null,null,null,null,null,null," "]
[104,null,null,null,null,null,null,null," "]
[105,null,null,null,null,null,null,null," "]
[106,null,null,null,null,null,null,null," "]
[107,null,null,null,null,null,null,null," "]
[108,null,null,null,null,null,null,null," "]
[109,null,null,null,null,null,null,null," "]
[110,null,null,null,null,null,null,null," "]
[111,null,null,null,null,null,null,null," "]
[112,null,null,null,null,null,null,null," "]
[113,null,null,null,null,null,null,null," "]

{"sheet":"Professional (PF)","index":9,"n_rows":120,"n_cols":9,"rows_kept":120,"cut":false,"hidden":false,"merged":[[0,0,1,8],[5,0,6,0],[5,1,6,1],[5,2,6,2],[5,3,6,3],[5,4,6,4],[5,5,6,5],[5,6,6,6],[5,7,6,7],[5,8,6,8]]}
["Professional (PF)"]
[]
[]
[null,null,null,"WEEK OF:",{"$f":"'Weekly Planner'!L1","v":"2023-04-21"}," "]
[]
["#","Rank","Predecessor","Successor","Description","Who","Target Date","Log Date","Complete"]
[]
[1,null,null,null,null,null,null,null," "]
[2,null,null,null,null,null,null,null," "]
[3,null,null,null,null,null,null,null," "]
[4,null,null,null,null,null,null,null," "]
[5,null,null,null,null,null,null,null," "]
[6,null,null,null,null,null,null,null," "]
[7,null,null,null,null,null,null,null," "]
[8,null,null,null,null,null,null,null," "]
[9,null,null,null,null,null,null,null," "]
[10,null,null,null,null,null,null,null," "]
[11,null,null,null,null,null,null,null," "]
[12,null,null,null,null,null,null,null," "]
[13,null,null,null,null,null,null,null," "]
[14,null,null,null,null,null,null,null," "]
[15,null,null,null,null,null,null,null," "]
[16,null,null,null,null,null,null,null," "]
[17,null,null,null,null,null,null,null," "]
[18,null,null,null,null,null,null,null," "]
[19,null,null,null,null,null,null,null," "]
[20,null,null,null,null,null,null,null," "]
[21,null,null,null,null,null,null,null," "]
[22,null,null,null,null,null,null,null," "]
[23,null,null,null,null,null,null,null," "]
[24,null,null,null,null,null,null,null," "]
[25,null,null,null,null,null,null,null," "]
[26,null,null,null,null,null,null,null," "]
[27,null,null,null,null,null,null,null," "]
[28,null,null,null,null,null,null,null," "]
[29,null,null,null,null,null,null,null," "]
[30,null,null,null,null,null,null,null," "]
[31,null,null,null,null,null,null,null," "]
[32,null,null,null,null,null,null,null," "]
[33,null,null,null,null,null,null,null," "]
[34,null,null,null,null,null,null,null," "]
[35,null,null,null,null,null,null,null," "]
[36,null,null,null,null,null,null,null," "]
[37,null,null,null,null,null,null,null," "]
[38,null,null,null,null,null,null,null," "]
[39,null,null,null,null,null,null,null," "]
[40,null,null,null,null,null,null,null," "]
[41,null,null,null,null,null,null,null," "]
[42,null,null,null,null,null,null,null," "]
[43,null,null,null,null,null,null,null," "]
[44,null,null,null,null,null,null,null," "]
[45,null,null,null,null,null,null,null," "]
[46,null,null,null,null,null,null,null," "]
[47,null,null,null,null,null,null,null," "]
[48,null,null,null,null,null,null,null," "]
[49,null,null,null,null,null,null,null," "]
[50,null,null,null,null,null,null,null," "]
[51,null,null,null,null,null,null,null," "]
[52,null,null,null,null,null,null,null," "]
[53,null,null,null,null,null,null,null," "]
[54,null,null,null,null,null,null,null," "]
[55,null,null,null,null,null,null,null," "]
[56,null,null,null,null,null,null,null," "]
[57,null,null,null,null,null,null,null," "]
[58,null,null,null,null,null,null,null," "]
[59,null,null,null,null,null,null,null," "]
[60,null,null,null,null,null,null,null," "]
[61,null,null,null,null,null,null,null," "]
[62,null,null,null,null,null,null,null," "]
[63,null,null,null,null,null,null,null," "]
[64,null,null,null,null,null,null,null," "]
[65,null,null,null,null,null,null,null," "]
[66,null,null,null,null,null,null,null," "]
[67,null,null,null,null,null,null,null," "]
[68,null,null,null,null,null,null,null," "]
[69,null,null,null,null,null,null,null," "]
[70,null,null,null,null,null,null,null," "]
[71,null,null,null,null,null,null,null," "]
[72,null,null,null,null,null,null,null," "]
[73,null,null,null,null,null,null,null," "]
[74,null,null,null,null,null,null,null," "]
[75,null,null,null,null,null,null,null," "]
[76,null,null,null,null,null,null,null," "]
[77,null,null,null,null,null,null,null," "]
[78,null,null,null,null,null,null,null," "]
[79,null,null,null,null,null,null,null," "]
[80,null,null,null,null,null,null,null," "]
[81,null,null,null,null,null,null,null," "]
[82,null,null,null,null,null,null,null," "]
[83,null,null,null,null,null,null,null," "]
[84,null,null,null,null,null,null,null," "]
[85,null,null,null,null,null,null,null," "]
[86,null,null,null,null,null,null,null," "]
[87,null,null,null,null,null,null,null," "]
[88,null,null,null,null,null,null,null," "]
[89,null,null,null,null,null,null,null," "]
[90,null,null,null,null,null,null,null," "]
[91,null,null,null,null,null,null,null," "]
[92,null,null,null,null,null,null,null," "]
[93,null,null,null,null,null,null,null," "]
[94,null,null,null,null,null,null,null," "]
[95,null,null,null,null,null,null,null," "]
[96,null,null,null,null,null,null,null," "]
[97,null,null,null,null,null,null,null," "]
[98,null,null,null,null,null,null,null," "]
[99,null,null,null,null,null,null,null," "]
[100,null,null,null,null,null,null,null," "]
[101,null,null,null,null,null,null,null," "]
[102,null,null,null,null,null,null,null," "]
[103,null,null,null,null,null,null,null," "]
[104,null,null,null,null,null,null,null," "]
[105,null,null,null,null,null,null,null," "]
[106,null,null,null,null,null,null,null," "]
[107,null,null,null,null,null,null,null," "]
[108,null,null,null,null,null,null,null," "]
[109,null,null,null,null,null,null,null," "]
[110,null,null,null,null,null,null,null," "]
[111,null,null,null,null,null,null,null," "]
[112,null,null,null,null,null,null,null," "]
[113,null,null,null,null,null,null,null," "]

{"sheet":"Family and Friends","index":10,"n_rows":120,"n_cols":9,"rows_kept":120,"cut":false,"hidden":false,"merged":[[0,0,1,8],[5,0,6,0],[5,1,6,1],[5,2,6,2],[5,3,6,3],[5,4,6,4],[5,5,6,5],[5,6,6,6],[5,7,6,7],[5,8,6,8]]}
["Family and Friends (F)"]
[]
[]
[null,null,null,"WEEK OF:",{"$f":"'Weekly Planner'!L1","v":"2023-04-21"}," "]
[]
["#","Rank","Predecessor","Successor","Description","Who","Target Date","Log Date","Complete"]
[]
[1,null,null,null,null,null,null,null," "]
[2,null,null,null,null,null,null,null," "]
[3,null,null,null,null,null,null,null," "]
[4,null,null,null,null,null,null,null," "]
[5,null,null,null,null,null,null,null," "]
[6,null,null,null,null,null,null,null," "]
[7,null,null,null,null,null,null,null," "]
[8,null,null,null,null,null,null,null," "]
[9,null,null,null,null,null,null,null," "]
[10,null,null,null,null,null,null,null," "]
[11,null,null,null,null,null,null,null," "]
[12,null,null,null,null,null,null,null," "]
[13,null,null,null,null,null,null,null," "]
[14,null,null,null,null,null,null,null," "]
[15,null,null,null,null,null,null,null," "]
[16,null,null,null,null,null,null,null," "]
[17,null,null,null,null,null,null,null," "]
[18,null,null,null,null,null,null,null," "]
[19,null,null,null,null,null,null,null," "]
[20,null,null,null,null,null,null,null," "]
[21,null,null,null,null,null,null,null," "]
[22,null,null,null,null,null,null,null," "]
[23,null,null,null,null,null,null,null," "]
[24,null,null,null,null,null,null,null," "]
[25,null,null,null,null,null,null,null," "]
[26,null,null,null,null,null,null,null," "]
[27,null,null,null,null,null,null,null," "]
[28,null,null,null,null,null,null,null," "]
[29,null,null,null,null,null,null,null," "]
[30,null,null,null,null,null,null,null," "]
[31,null,null,null,null,null,null,null," "]
[32,null,null,null,null,null,null,null," "]
[33,null,null,null,null,null,null,null," "]
[34,null,null,null,null,null,null,null," "]
[35,null,null,null,null,null,null,null," "]
[36,null,null,null,null,null,null,null," "]
[37,null,null,null,null,null,null,null," "]
[38,null,null,null,null,null,null,null," "]
[39,null,null,null,null,null,null,null," "]
[40,null,null,null,null,null,null,null," "]
[41,null,null,null,null,null,null,null," "]
[42,null,null,null,null,null,null,null," "]
[43,null,null,null,null,null,null,null," "]
[44,null,null,null,null,null,null,null," "]
[45,null,null,null,null,null,null,null," "]
[46,null,null,null,null,null,null,null," "]
[47,null,null,null,null,null,null,null," "]
[48,null,null,null,null,null,null,null," "]
[49,null,null,null,null,null,null,null," "]
[50,null,null,null,null,null,null,null," "]
[51,null,null,null,null,null,null,null," "]
[52,null,null,null,null,null,null,null," "]
[53,null,null,null,null,null,null,null," "]
[54,null,null,null,null,null,null,null," "]
[55,null,null,null,null,null,null,null," "]
[56,null,null,null,null,null,null,null," "]
[57,null,null,null,null,null,null,null," "]
[58,null,null,null,null,null,null,null," "]
[59,null,null,null,null,null,null,null," "]
[60,null,null,null,null,null,null,null," "]
[61,null,null,null,null,null,null,null," "]
[62,null,null,null,null,null,null,null," "]
[63,null,null,null,null,null,null,null," "]
[64,null,null,null,null,null,null,null," "]
[65,null,null,null,null,null,null,null," "]
[66,null,null,null,null,null,null,null," "]
[67,null,null,null,null,null,null,null," "]
[68,null,null,null,null,null,null,null," "]
[69,null,null,null,null,null,null,null," "]
[70,null,null,null,null,null,null,null," "]
[71,null,null,null,null,null,null,null," "]
[72,null,null,null,null,null,null,null," "]
[73,null,null,null,null,null,null,null," "]
[74,null,null,null,null,null,null,null," "]
[75,null,null,null,null,null,null,null," "]
[76,null,null,null,null,null,null,null," "]
[77,null,null,null,null,null,null,null," "]
[78,null,null,null,null,null,null,null," "]
[79,null,null,null,null,null,null,null," "]
[80,null,null,null,null,null,null,null," "]
[81,null,null,null,null,null,null,null," "]
[82,null,null,null,null,null,null,null," "]
[83,null,null,null,null,null,null,null," "]
[84,null,null,null,null,null,null,null," "]
[85,null,null,null,null,null,null,null," "]
[86,null,null,null,null,null,null,null," "]
[87,null,null,null,null,null,null,null," "]
[88,null,null,null,null,null,null,null," "]
[89,null,null,null,null,null,null,null," "]
[90,null,null,null,null,null,null,null," "]
[91,null,null,null,null,null,null,null," "]
[92,null,null,null,null,null,null,null," "]
[93,null,null,null,null,null,null,null," "]
[94,null,null,null,null,null,null,null," "]
[95,null,null,null,null,null,null,null," "]
[96,null,null,null,null,null,null,null," "]
[97,null,null,null,null,null,null,null," "]
[98,null,null,null,null,null,null,null," "]
[99,null,null,null,null,null,null,null," "]
[100,null,null,null,null,null,null,null," "]
[101,null,null,null,null,null,null,null," "]
[102,null,null,null,null,null,null,null," "]
[103,null,null,null,null,null,null,null," "]
[104,null,null,null,null,null,null,null," "]
[105,null,null,null,null,null,null,null," "]
[106,null,null,null,null,null,null,null," "]
[107,null,null,null,null,null,null,null," "]
[108,null,null,null,null,null,null,null," "]
[109,null,null,null,null,null,null,null," "]
[110,null,null,null,null,null,null,null," "]
[111,null,null,null,null,null,null,null," "]
[112,null,null,null,null,null,null,null," "]
[113,null,null,null,null,null,null,null," "]

{"sheet":"Phone Calls (PC)","index":11,"n_rows":120,"n_cols":9,"rows_kept":120,"cut":false,"hidden":false,"merged":[[0,0,1,8],[5,0,6,0],[5,1,6,1],[5,2,6,2],[5,3,6,3],[5,4,6,4],[5,5,6,5],[5,6,6,6],[5,7,6,7],[5,8,6,8]]}
["Phone Calls (PC)"]
[]
[]
[null,null,null,"WEEK OF:",{"$f":"'Weekly Planner'!L1","v":"2023-04-21"}," "]
[]
["#","Rank","Predecessor","Successor","Description","Who","Target Date","Log Date","Complete"]
[]
[1,null,null,null,null,null,null,null," "]
[2,null,null,null,null,null,null,null," "]
[3,null,null,null,null,null,null,null," "]
[4,null,null,null,null,null,null,null," "]
[5,null,null,null,null,null,null,null," "]
[6,null,null,null,null,null,null,null," "]
[7,null,null,null,null,null,null,null," "]
[8,null,null,null,null,null,null,null," "]
[9,null,null,null,null,null,null,null," "]
[10,null,null,null,null,null,null,null," "]
[11,null,null,null,null,null,null,null," "]
[12,null,null,null,null,null,null,null," "]
[13,null,null,null,null,null,null,null," "]
[14,null,null,null,null,null,null,null," "]
[15,null,null,null,null,null,null,null," "]
[16,null,null,null,null,null,null,null," "]
[17,null,null,null,null,null,null,null," "]
[18,null,null,null,null,null,null,null," "]
[19,null,null,null,null,null,null,null," "]
[20,null,null,null,null,null,null,null," "]
[21,null,null,null,null,null,null,null," "]
[22,null,null,null,null,null,null,null," "]
[23,null,null,null,null,null,null,null," "]
[24,null,null,null,null,null,null,null," "]
[25,null,null,null,null,null,null,null," "]
[26,null,null,null,null,null,null,null," "]
[27,null,null,null,null,null,null,null," "]
[28,null,null,null,null,null,null,null," "]
[29,null,null,null,null,null,null,null," "]
[30,null,null,null,null,null,null,null," "]
[31,null,null,null,null,null,null,null," "]
[32,null,null,null,null,null,null,null," "]
[33,null,null,null,null,null,null,null," "]
[34,null,null,null,null,null,null,null," "]
[35,null,null,null,null,null,null,null," "]
[36,null,null,null,null,null,null,null," "]
[37,null,null,null,null,null,null,null," "]
[38,null,null,null,null,null,null,null," "]
[39,null,null,null,null,null,null,null," "]
[40,null,null,null,null,null,null,null," "]
[41,null,null,null,null,null,null,null," "]
[42,null,null,null,null,null,null,null," "]
[43,null,null,null,null,null,null,null," "]
[44,null,null,null,null,null,null,null," "]
[45,null,null,null,null,null,null,null," "]
[46,null,null,null,null,null,null,null," "]
[47,null,null,null,null,null,null,null," "]
[48,null,null,null,null,null,null,null," "]
[49,null,null,null,null,null,null,null," "]
[50,null,null,null,null,null,null,null," "]
[51,null,null,null,null,null,null,null," "]
[52,null,null,null,null,null,null,null," "]
[53,null,null,null,null,null,null,null," "]
[54,null,null,null,null,null,null,null," "]
[55,null,null,null,null,null,null,null," "]
[56,null,null,null,null,null,null,null," "]
[57,null,null,null,null,null,null,null," "]
[58,null,null,null,null,null,null,null," "]
[59,null,null,null,null,null,null,null," "]
[60,null,null,null,null,null,null,null," "]
[61,null,null,null,null,null,null,null," "]
[62,null,null,null,null,null,null,null," "]
[63,null,null,null,null,null,null,null," "]
[64,null,null,null,null,null,null,null," "]
[65,null,null,null,null,null,null,null," "]
[66,null,null,null,null,null,null,null," "]
[67,null,null,null,null,null,null,null," "]
[68,null,null,null,null,null,null,null," "]
[69,null,null,null,null,null,null,null," "]
[70,null,null,null,null,null,null,null," "]
[71,null,null,null,null,null,null,null," "]
[72,null,null,null,null,null,null,null," "]
[73,null,null,null,null,null,null,null," "]
[74,null,null,null,null,null,null,null," "]
[75,null,null,null,null,null,null,null," "]
[76,null,null,null,null,null,null,null," "]
[77,null,null,null,null,null,null,null," "]
[78,null,null,null,null,null,null,null," "]
[79,null,null,null,null,null,null,null," "]
[80,null,null,null,null,null,null,null," "]
[81,null,null,null,null,null,null,null," "]
[82,null,null,null,null,null,null,null," "]
[83,null,null,null,null,null,null,null," "]
[84,null,null,null,null,null,null,null," "]
[85,null,null,null,null,null,null,null," "]
[86,null,null,null,null,null,null,null," "]
[87,null,null,null,null,null,null,null," "]
[88,null,null,null,null,null,null,null," "]
[89,null,null,null,null,null,null,null," "]
[90,null,null,null,null,null,null,null," "]
[91,null,null,null,null,null,null,null," "]
[92,null,null,null,null,null,null,null," "]
[93,null,null,null,null,null,null,null," "]
[94,null,null,null,null,null,null,null," "]
[95,null,null,null,null,null,null,null," "]
[96,null,null,null,null,null,null,null," "]
[97,null,null,null,null,null,null,null," "]
[98,null,null,null,null,null,null,null," "]
[99,null,null,null,null,null,null,null," "]
[100,null,null,null,null,null,null,null," "]
[101,null,null,null,null,null,null,null," "]
[102,null,null,null,null,null,null,null," "]
[103,null,null,null,null,null,null,null," "]
[104,null,null,null,null,null,null,null," "]
[105,null,null,null,null,null,null,null," "]
[106,null,null,null,null,null,null,null," "]
[107,null,null,null,null,null,null,null," "]
[108,null,null,null,null,null,null,null," "]
[109,null,null,null,null,null,null,null," "]
[110,null,null,null,null,null,null,null," "]
[111,null,null,null,null,null,null,null," "]
[112,null,null,null,null,null,null,null," "]
[113,null,null,null,null,null,null,null," "]

{"sheet":"Errands (E)","index":12,"n_rows":120,"n_cols":9,"rows_kept":120,"cut":false,"hidden":false,"merged":[[0,0,1,8],[5,0,6,0],[5,1,6,1],[5,2,6,2],[5,3,6,3],[5,4,6,4],[5,5,6,5],[5,6,6,6],[5,7,6,7],[5,8,6,8]]}
["Errands (E.)"]
[]
[]
[null,null,null,"WEEK OF:",{"$f":"'Weekly Planner'!L1","v":"2023-04-21"}," "]
[]
["#","Rank","Predecessor","Successor","Description","Who","Target Date","Log Date","Complete"]
[]
[1,null,null,null,null,null,null,null," "]
[2,null,null,null,null,null,null,null," "]
[3,null,null,null,null,null,null,null," "]
[4,null,null,null,null,null,null,null," "]
[5,null,null,null,null,null,null,null," "]
[6,null,null,null,null,null,null,null," "]
[7,null,null,null,null,null,null,null," "]
[8,null,null,null,null,null,null,null," "]
[9,null,null,null,null,null,null,null," "]
[10,null,null,null,null,null,null,null," "]
[11,null,null,null,null,null,null,null," "]
[12,null,null,null,null,null,null,null," "]
[13,null,null,null,null,null,null,null," "]
[14,null,null,null,null,null,null,null," "]
[15,null,null,null,null,null,null,null," "]
[16,null,null,null,null,null,null,null," "]
[17,null,null,null,null,null,null,null," "]
[18,null,null,null,null,null,null,null," "]
[19,null,null,null,null,null,null,null," "]
[20,null,null,null,null,null,null,null," "]
[21,null,null,null,null,null,null,null," "]
[22,null,null,null,null,null,null,null," "]
[23,null,null,null,null,null,null,null," "]
[24,null,null,null,null,null,null,null," "]
[25,null,null,null,null,null,null,null," "]
[26,null,null,null,null,null,null,null," "]
[27,null,null,null,null,null,null,null," "]
[28,null,null,null,null,null,null,null," "]
[29,null,null,null,null,null,null,null," "]
[30,null,null,null,null,null,null,null," "]
[31,null,null,null,null,null,null,null," "]
[32,null,null,null,null,null,null,null," "]
[33,null,null,null,null,null,null,null," "]
[34,null,null,null,null,null,null,null," "]
[35,null,null,null,null,null,null,null," "]
[36,null,null,null,null,null,null,null," "]
[37,null,null,null,null,null,null,null," "]
[38,null,null,null,null,null,null,null," "]
[39,null,null,null,null,null,null,null," "]
[40,null,null,null,null,null,null,null," "]
[41,null,null,null,null,null,null,null," "]
[42,null,null,null,null,null,null,null," "]
[43,null,null,null,null,null,null,null," "]
[44,null,null,null,null,null,null,null," "]
[45,null,null,null,null,null,null,null," "]
[46,null,null,null,null,null,null,null," "]
[47,null,null,null,null,null,null,null," "]
[48,null,null,null,null,null,null,null," "]
[49,null,null,null,null,null,null,null," "]
[50,null,null,null,null,null,null,null," "]
[51,null,null,null,null,null,null,null," "]
[52,null,null,null,null,null,null,null," "]
[53,null,null,null,null,null,null,null," "]
[54,null,null,null,null,null,null,null," "]
[55,null,null,null,null,null,null,null," "]
[56,null,null,null,null,null,null,null," "]
[57,null,null,null,null,null,null,null," "]
[58,null,null,null,null,null,null,null," "]
[59,null,null,null,null,null,null,null," "]
[60,null,null,null,null,null,null,null," "]
[61,null,null,null,null,null,null,null," "]
[62,null,null,null,null,null,null,null," "]
[63,null,null,null,null,null,null,null," "]
[64,null,null,null,null,null,null,null," "]
[65,null,null,null,null,null,null,null," "]
[66,null,null,null,null,null,null,null," "]
[67,null,null,null,null,null,null,null," "]
[68,null,null,null,null,null,null,null," "]
[69,null,null,null,null,null,null,null," "]
[70,null,null,null,null,null,null,null," "]
[71,null,null,null,null,null,null,null," "]
[72,null,null,null,null,null,null,null," "]
[73,null,null,null,null,null,null,null," "]
[74,null,null,null,null,null,null,null," "]
[75,null,null,null,null,null,null,null," "]
[76,null,null,null,null,null,null,null," "]
[77,null,null,null,null,null,null,null," "]
[78,null,null,null,null,null,null,null," "]
[79,null,null,null,null,null,null,null," "]
[80,null,null,null,null,null,null,null," "]
[81,null,null,null,null,null,null,null," "]
[82,null,null,null,null,null,null,null," "]
[83,null,null,null,null,null,null,null," "]
[84,null,null,null,null,null,null,null," "]
[85,null,null,null,null,null,null,null," "]
[86,null,null,null,null,null,null,null," "]
[87,null,null,null,null,null,null,null," "]
[88,null,null,null,null,null,null,null," "]
[89,null,null,null,null,null,null,null," "]
[90,null,null,null,null,null,null,null," "]
[91,null,null,null,null,null,null,null," "]
[92,null,null,null,null,null,null,null," "]
[93,null,null,null,null,null,null,null," "]
[94,null,null,null,null,null,null,null," "]
[95,null,null,null,null,null,null,null," "]
[96,null,null,null,null,null,null,null," "]
[97,null,null,null,null,null,null,null," "]
[98,null,null,null,null,null,null,null," "]
[99,null,null,null,null,null,null,null," "]
[100,null,null,null,null,null,null,null," "]
[101,null,null,null,null,null,null,null," "]
[102,null,null,null,null,null,null,null," "]
[103,null,null,null,null,null,null,null," "]
[104,null,null,null,null,null,null,null," "]
[105,null,null,null,null,null,null,null," "]
[106,null,null,null,null,null,null,null," "]
[107,null,null,null,null,null,null,null," "]
[108,null,null,null,null,null,null,null," "]
[109,null,null,null,null,null,null,null," "]
[110,null,null,null,null,null,null,null," "]
[111,null,null,null,null,null,null,null," "]
[112,null,null,null,null,null,null,null," "]
[113,null,null,null,null,null,null,null," "]

{"sheet":"@ Computer (C)","index":13,"n_rows":120,"n_cols":9,"rows_kept":120,"cut":false,"hidden":false,"merged":[[0,0,1,8],[5,0,6,0],[5,1,6,1],[5,2,6,2],[5,3,6,3],[5,4,6,4],[5,5,6,5],[5,6,6,6],[5,7,6,7],[5,8,6,8]]}
["@ Computer (C.)"]
[]
[]
[null,null,null,"WEEK OF:",{"$f":"'Weekly Planner'!L1","v":"2023-04-21"}," "]
[]
["#","Rank","Predecessor","Successor","Description","Who","Target Date","Log Date","Complete"]
[]
[1,null,null,null,null,null,null,null," "]
[2,null,null,null,null,null,null,null," "]
[3,null,null,null,null,null,null,null," "]
[4,null,null,null,null,null,null,null," "]
[5,null,null,null,null,null,null,null," "]
[6,null,null,null,null,null,null,null," "]
[7,null,null,null,null,null,null,null," "]
[8,null,null,null,null,null,null,null," "]
[9,null,null,null,null,null,null,null," "]
[10,null,null,null,null,null,null,null," "]
[11,null,null,null,null,null,null,null," "]
[12,null,null,null,null,null,null,null," "]
[13,null,null,null,null,null,null,null," "]
[14,null,null,null,null,null,null,null," "]
[15,null,null,null,null,null,null,null," "]
[16,null,null,null,null,null,null,null," "]
[17,null,null,null,null,null,null,null," "]
[18,null,null,null,null,null,null,null," "]
[19,null,null,null,null,null,null,null," "]
[20,null,null,null,null,null,null,null," "]
[21,null,null,null,null,null,null,null," "]
[22,null,null,null,null,null,null,null," "]
[23,null,null,null,null,null,null,null," "]
[24,null,null,null,null,null,null,null," "]
[25,null,null,null,null,null,null,null," "]
[26,null,null,null,null,null,null,null," "]
[27,null,null,null,null,null,null,null," "]
[28,null,null,null,null,null,null,null," "]
[29,null,null,null,null,null,null,null," "]
[30,null,null,null,null,null,null,null," "]
[31,null,null,null,null,null,null,null," "]
[32,null,null,null,null,null,null,null," "]
[33,null,null,null,null,null,null,null," "]
[34,null,null,null,null,null,null,null," "]
[35,null,null,null,null,null,null,null," "]
[36,null,null,null,null,null,null,null," "]
[37,null,null,null,null,null,null,null," "]
[38,null,null,null,null,null,null,null," "]
[39,null,null,null,null,null,null,null," "]
[40,null,null,null,null,null,null,null," "]
[41,null,null,null,null,null,null,null," "]
[42,null,null,null,null,null,null,null," "]
[43,null,null,null,null,null,null,null," "]
[44,null,null,null,null,null,null,null," "]
[45,null,null,null,null,null,null,null," "]
[46,null,null,null,null,null,null,null," "]
[47,null,null,null,null,null,null,null," "]
[48,null,null,null,null,null,null,null," "]
[49,null,null,null,null,null,null,null," "]
[50,null,null,null,null,null,null,null," "]
[51,null,null,null,null,null,null,null," "]
[52,null,null,null,null,null,null,null," "]
[53,null,null,null,null,null,null,null," "]
[54,null,null,null,null,null,null,null," "]
[55,null,null,null,null,null,null,null," "]
[56,null,null,null,null,null,null,null," "]
[57,null,null,null,null,null,null,null," "]
[58,null,null,null,null,null,null,null," "]
[59,null,null,null,null,null,null,null," "]
[60,null,null,null,null,null,null,null," "]
[61,null,null,null,null,null,null,null," "]
[62,null,null,null,null,null,null,null," "]
[63,null,null,null,null,null,null,null," "]
[64,null,null,null,null,null,null,null," "]
[65,null,null,null,null,null,null,null," "]
[66,null,null,null,null,null,null,null," "]
[67,null,null,null,null,null,null,null," "]
[68,null,null,null,null,null,null,null," "]
[69,null,null,null,null,null,null,null," "]
[70,null,null,null,null,null,null,null," "]
[71,null,null,null,null,null,null,null," "]
[72,null,null,null,null,null,null,null," "]
[73,null,null,null,null,null,null,null," "]
[74,null,null,null,null,null,null,null," "]
[75,null,null,null,null,null,null,null," "]
[76,null,null,null,null,null,null,null," "]
[77,null,null,null,null,null,null,null," "]
[78,null,null,null,null,null,null,null," "]
[79,null,null,null,null,null,null,null," "]
[80,null,null,null,null,null,null,null," "]
[81,null,null,null,null,null,null,null," "]
[82,null,null,null,null,null,null,null," "]
[83,null,null,null,null,null,null,null," "]
[84,null,null,null,null,null,null,null," "]
[85,null,null,null,null,null,null,null," "]
[86,null,null,null,null,null,null,null," "]
[87,null,null,null,null,null,null,null," "]
[88,null,null,null,null,null,null,null," "]
[89,null,null,null,null,null,null,null," "]
[90,null,null,null,null,null,null,null," "]
[91,null,null,null,null,null,null,null," "]
[92,null,null,null,null,null,null,null," "]
[93,null,null,null,null,null,null,null," "]
[94,null,null,null,null,null,null,null," "]
[95,null,null,null,null,null,null,null," "]
[96,null,null,null,null,null,null,null," "]
[97,null,null,null,null,null,null,null," "]
[98,null,null,null,null,null,null,null," "]
[99,null,null,null,null,null,null,null," "]
[100,null,null,null,null,null,null,null," "]
[101,null,null,null,null,null,null,null," "]
[102,null,null,null,null,null,null,null," "]
[103,null,null,null,null,null,null,null," "]
[104,null,null,null,null,null,null,null," "]
[105,null,null,null,null,null,null,null," "]
[106,null,null,null,null,null,null,null," "]
[107,null,null,null,null,null,null,null," "]
[108,null,null,null,null,null,null,null," "]
[109,null,null,null,null,null,null,null," "]
[110,null,null,null,null,null,null,null," "]
[111,null,null,null,null,null,null,null," "]
[112,null,null,null,null,null,null,null," "]
[113,null,null,null,null,null,null,null," "]

{"sheet":"Home (H)","index":14,"n_rows":120,"n_cols":9,"rows_kept":120,"cut":false,"hidden":false,"merged":[[0,0,1,8],[5,0,6,0],[5,1,6,1],[5,2,6,2],[5,3,6,3],[5,4,6,4],[5,5,6,5],[5,6,6,6],[5,7,6,7],[5,8,6,8]]}
["Home (H)"]
[]
[]
[null,null,null,"WEEK OF:",{"$f":"'Weekly Planner'!L1","v":"2023-04-21"}," "]
[]
["#","Rank","Predecessor","Successor","Description","Who","Target Date","Log Date","Complete"]
[]
[1,null,null,null,null,null,null,null," "]
[2,null,null,null,null,null,null,null," "]
[3,null,null,null,null,null,null,null," "]
[4,null,null,null,null,null,null,null," "]
[5,null,null,null,null,null,null,null," "]
[6,null,null,null,null,null,null,null," "]
[7,null,null,null,null,null,null,null," "]
[8,null,null,null,null,null,null,null," "]
[9,null,null,null,null,null,null,null," "]
[10,null,null,null,null,null,null,null," "]
[11,null,null,null,null,null,null,null," "]
[12,null,null,null,null,null,null,null," "]
[13,null,null,null,null,null,null,null," "]
[14,null,null,null,null,null,null,null," "]
[15,null,null,null,null,null,null,null," "]
[16,null,null,null,null,null,null,null," "]
[17,null,null,null,null,null,null,null," "]
[18,null,null,null,null,null,null,null," "]
[19,null,null,null,null,null,null,null," "]
[20,null,null,null,null,null,null,null," "]
[21,null,null,null,null,null,null,null," "]
[22,null,null,null,null,null,null,null," "]
[23,null,null,null,null,null,null,null," "]
[24,null,null,null,null,null,null,null," "]
[25,null,null,null,null,null,null,null," "]
[26,null,null,null,null,null,null,null," "]
[27,null,null,null,null,null,null,null," "]
[28,null,null,null,null,null,null,null," "]
[29,null,null,null,null,null,null,null," "]
[30,null,null,null,null,null,null,null," "]
[31,null,null,null,null,null,null,null," "]
[32,null,null,null,null,null,null,null," "]
[33,null,null,null,null,null,null,null," "]
[34,null,null,null,null,null,null,null," "]
[35,null,null,null,null,null,null,null," "]
[36,null,null,null,null,null,null,null," "]
[37,null,null,null,null,null,null,null," "]
[38,null,null,null,null,null,null,null," "]
[39,null,null,null,null,null,null,null," "]
[40,null,null,null,null,null,null,null," "]
[41,null,null,null,null,null,null,null," "]
[42,null,null,null,null,null,null,null," "]
[43,null,null,null,null,null,null,null," "]
[44,null,null,null,null,null,null,null," "]
[45,null,null,null,null,null,null,null," "]
[46,null,null,null,null,null,null,null," "]
[47,null,null,null,null,null,null,null," "]
[48,null,null,null,null,null,null,null," "]
[49,null,null,null,null,null,null,null," "]
[50,null,null,null,null,null,null,null," "]
[51,null,null,null,null,null,null,null," "]
[52,null,null,null,null,null,null,null," "]
[53,null,null,null,null,null,null,null," "]
[54,null,null,null,null,null,null,null," "]
[55,null,null,null,null,null,null,null," "]
[56,null,null,null,null,null,null,null," "]
[57,null,null,null,null,null,null,null," "]
[58,null,null,null,null,null,null,null," "]
[59,null,null,null,null,null,null,null," "]
[60,null,null,null,null,null,null,null," "]
[61,null,null,null,null,null,null,null," "]
[62,null,null,null,null,null,null,null," "]
[63,null,null,null,null,null,null,null," "]
[64,null,null,null,null,null,null,null," "]
[65,null,null,null,null,null,null,null," "]
[66,null,null,null,null,null,null,null," "]
[67,null,null,null,null,null,null,null," "]
[68,null,null,null,null,null,null,null," "]
[69,null,null,null,null,null,null,null," "]
[70,null,null,null,null,null,null,null," "]
[71,null,null,null,null,null,null,null," "]
[72,null,null,null,null,null,null,null," "]
[73,null,null,null,null,null,null,null," "]
[74,null,null,null,null,null,null,null," "]
[75,null,null,null,null,null,null,null," "]
[76,null,null,null,null,null,null,null," "]
[77,null,null,null,null,null,null,null," "]
[78,null,null,null,null,null,null,null," "]
[79,null,null,null,null,null,null,null," "]
[80,null,null,null,null,null,null,null," "]
[81,null,null,null,null,null,null,null," "]
[82,null,null,null,null,null,null,null," "]
[83,null,null,null,null,null,null,null," "]
[84,null,null,null,null,null,null,null," "]
[85,null,null,null,null,null,null,null," "]
[86,null,null,null,null,null,null,null," "]
[87,null,null,null,null,null,null,null," "]
[88,null,null,null,null,null,null,null," "]
[89,null,null,null,null,null,null,null," "]
[90,null,null,null,null,null,null,null," "]
[91,null,null,null,null,null,null,null," "]
[92,null,null,null,null,null,null,null," "]
[93,null,null,null,null,null,null,null," "]
[94,null,null,null,null,null,null,null," "]
[95,null,null,null,null,null,null,null," "]
[96,null,null,null,null,null,null,null," "]
[97,null,null,null,null,null,null,null," "]
[98,null,null,null,null,null,null,null," "]
[99,null,null,null,null,null,null,null," "]
[100,null,null,null,null,null,null,null," "]
[101,null,null,null,null,null,null,null," "]
[102,null,null,null,null,null,null,null," "]
[103,null,null,null,null,null,null,null," "]
[104,null,null,null,null,null,null,null," "]
[105,null,null,null,null,null,null,null," "]
[106,null,null,null,null,null,null,null," "]
[107,null,null,null,null,null,null,null," "]
[108,null,null,null,null,null,null,null," "]
[109,null,null,null,null,null,null,null," "]
[110,null,null,null,null,null,null,null," "]
[111,null,null,null,null,null,null,null," "]
[112,null,null,null,null,null,null,null," "]
[113,null,null,null,null,null,null,null," "]